bitfinex-derivatives/quotes_BTCF0:USTF0_20251120
["timestamp","ask_amount","ask_price","bid_price","bid_amount"]
[1763623578421,0.04567,91951.0,91950.0,0.06011803]
[1763623584017,0.07067092,91951.0,91950.0,0.06011803]
[1763623585830,0.04567,91951.0,91950.0,0.06011803]
[1763623592330,0.002,91951.0,91950.0,0.06011803]
[1763623592731,0.1088593,91957.0,91956.0,0.1547561]
[1763623592933,0.1088593,91957.0,91956.0,0.15695773]
[1763623594037,0.1088593,91957.0,91956.0,0.04809803]
[1763623595430,0.1308393,91957.0,91956.0,0.04809803]
[1763623596243,0.1308393,91957.0,91956.0,0.04909803]
[1763623596439,0.1523193,91957.0,91956.0,0.04909803]
[1763623598332,0.17725366,91957.0,91956.0,0.04909803]
[1763623598537,0.17725366,91957.0,91956.0,0.06212803]
[1763623598745,0.17725366,91957.0,91956.0,0.06312803]
[1763623599439,0.17725366,91957.0,91956.0,0.06212803]
[1763623599645,0.02493436,91957.0,91956.0,0.06212803]
[1763623600742,0.02493436,91957.0,91956.0,0.06112803]
[1763623603155,0.1088579,91958.0,91957.0,0.1547585]
[1763623603448,0.13380858,91958.0,91957.0,0.04809803]
[1763623604237,0.15578858,91958.0,91957.0,0.04809803]
[1763623604437,0.15578858,91958.0,91957.0,0.04909803]
[1763623604638,0.17726858,91958.0,91957.0,0.04909803]
[1763623607046,0.17726858,91958.0,91957.0,0.04809803]
[1763623609045,0.17726858,91958.0,91957.0,0.02523803]
[1763623609234,0.17726858,91958.0,91957.0,0.00219803]
[1763623609436,0.17726858,91958.0,91957.0,0.02523803]
[1763623609649,0.17726858,91958.0,91957.0,0.04809803]
[1763623610548,0.17726858,91958.0,91957.0,0.15695653]
[1763623610748,0.02495068,91958.0,91957.0,0.15695653]
[1763623611440,0.02495068,91958.0,91957.0,0.15795653]
[1763623612942,0.02595068,91958.0,91957.0,0.15695653]
[1763623613143,0.02695068,91958.0,91957.0,0.15695653]
[1763623614048,0.002,91958.0,91957.0,0.15695653]
[1763623621264,0.002,91958.0,91957.0,0.26195653]
[1763623623264,0.03853866,91994.0,91993.0,0.02287]
[1763623623468,0.3608,91996.0,91995.0,0.1546035]
[1763623623658,0.1088108,91998.0,91997.0,0.1546011]
[1763623623863,0.13378558,91998.0,91997.0,0.15679913]
[1763623624055,0.15628558,91998.0,91997.0,0.15679913]
[1763623624259,0.0225,91998.0,91997.0,0.15679913]
[1763623624456,0.3608,92003.0,92002.0,0.1545952]
[1763623624766,0.00027172,92006.0,92005.0,0.1545917]
[1763623624966,0.00027172,92006.0,92005.0,0.15678973]
[1763623625267,0.00027172,92006.0,92005.0,1.54798803]
[1763623626366,0.00127172,92006.0,92005.0,1.54798803]
[1763623627170,0.00227172,92006.0,92005.0,1.54798803]
[1763623627561,0.02477172,92006.0,92005.0,1.54798803]
[1763623629360,0.00227172,92006.0,92005.0,1.54798803]
[1763623630672,0.04753172,92006.0,92005.0,1.54798803]
[1763623630874,0.00227172,92006.0,92005.0,1.54798803]
[1763623632570,0.02477172,92006.0,92005.0,1.54798803]
[1763623632770,0.04753172,92006.0,92005.0,1.54798803]
[1763623633677,0.00227172,92006.0,92005.0,1.54798803]
[1763623634068,0.40833172,92006.0,92005.0,0.00219803]
[1763623634268,0.1540723,91996.0,91995.0,0.38367]
[1763623634468,0.1540723,91996.0,91995.0,0.38586803]
[1763623634772,0.1540723,91996.0,91995.0,0.40878803]
[1763623635574,0.1088123,91996.0,91995.0,0.40878803]
[1763623636170,0.108809,91999.0,91998.0,0.01276]
[1763623636369,0.131309,91999.0,91998.0,0.06074803]
[1763623636870,0.154069,91999.0,91998.0,0.06074803]
[1763623639779,0.154069,91999.0,91998.0,0.04798803]
[1763623639977,0.155069,91999.0,91998.0,0.02506803]
[1763623640183,0.155069,91999.0,91998.0,0.04798803]
[1763623640582,0.156069,91999.0,91998.0,0.04798803]
[1763623640778,0.156069,91999.0,91998.0,0.06074803]
[1763623640977,0.155069,91999.0,91998.0,0.04798803]
[1763623641172,0.154069,91999.0,91998.0,0.04798803]
[1763623641583,0.154069,91999.0,91998.0,0.00219803]
[1763623641981,0.154069,91999.0,91998.0,0.02506803]
[1763623643383,0.154069,91999.0,91998.0,0.04798803]
[1763623644387,0.154069,91999.0,91992.0,0.01276]
[1763623644388,0.1088159,91993.0,91992.0,0.04579]
[1763623644691,0.1540806,91989.0,91988.0,0.04595312]
[1763623644983,0.1540806,91989.0,91988.0,0.04815115]
[1763623646678,0.1540806,91989.0,91988.0,0.00236115]
[1763623648286,0.17881406,91989.0,91988.0,0.00236115]
[1763623648984,0.17881406,91989.0,91988.0,0.00016312]
[1763623650794,0.17881406,91989.0,91988.0,0.02152312]
[1763623651596,0.17881406,91989.0,91988.0,0.04666115]
[1763623652785,0.02473346,91989.0,91988.0,0.04666115]
[1763623653989,0.06863346,91989.0,91988.0,0.04766115]
[1763623654494,0.06863346,91989.0,91988.0,0.04866115]
[1763623656193,0.02473346,91989.0,91988.0,0.04866115]
[1763623656494,0.50966,91993.0,91992.0,0.05679]
[1763623656695,0.53465656,91993.0,91992.0,0.05898803]
[1763623657085,0.53465656,91993.0,91992.0,0.16780513]
[1763623657687,0.42969656,91993.0,91992.0,0.16780513]
[1763623658091,0.4047,91993.0,91992.0,0.16780513]
[1763623658287,0.42970755,91993.0,91992.0,0.16780513]
[1763623659291,0.42970755,91993.0,91992.0,0.05898803]
[1763623659292,0.4047,91993.0,91992.0,0.05898803]
[1763623659890,0.42971291,91993.0,91992.0,0.05898803]
[1763623660197,0.42971751,91993.0,91992.0,0.05898803]
[1763623661398,0.42971751,91993.0,91992.0,0.04502803]
[1763623664092,0.42971751,91993.0,91992.0,0.05898803]
[1763623664799,0.06891751,91993.0,91992.0,0.05898803]
[1763623665195,0.02501751,91993.0,91992.0,0.05898803]
[1763623665395,0.00016312,92007.0,92004.0,0.1227628]
[1763623665396,0.46987332,92006.0,92004.0,0.1227628]
[1763623665603,0.46987332,92006.0,92005.0,0.04502803]
[1763623665804,0.51602789,92006.0,92005.0,0.04502803]
[1763623666698,0.15522789,92006.0,92005.0,0.04502803]
[1763623666899,0.04642629,92006.0,92005.0,0.04502803]
[1763623668403,0.02523629,92006.0,92005.0,0.04502803]
[1763623668713,0.00027172,92006.0,92005.0,0.04502803]
[1763623670600,0.07445171,92060.0,92022.0,0.02166]
[1763623670601,0.38199,92023.0,92022.0,0.02166]
[1763623670910,0.38199,92023.0,92022.0,0.05898803]
[1763623670911,0.02493814,92023.0,92022.0,0.05898803]
[1763623671205,0.0439,92030.0,92029.0,0.04283]
[1763623671513,0.0688268,92030.0,92029.0,0.15380133]
[1763623671708,0.1775989,92030.0,92029.0,0.15380133]
[1763623672012,0.0688268,92030.0,92029.0,0.15380133]
[1763623672308,0.0439,92030.0,92029.0,0.15380133]
[1763623672609,0.02119,92033.0,92029.0,0.00219803]
[1763623672813,0.1526697,92033.0,92032.0,0.04283]
[1763623673001,0.17758407,92033.0,92032.0,0.04502803]
[1763623673205,0.1526697,92033.0,92032.0,0.04502803]
[1763623676012,0.0439,92033.0,92032.0,0.04502803]
[1763623677197,0.02119,92033.0,92032.0,0.04502803]
[1763623678006,0.0439,92033.0,92032.0,0.04502803]
[1763623683006,0.38283303,92039.0,92038.0,0.1542127]
[1763623683206,0.40519303,92039.0,92038.0,0.15641073]
[1763623684114,0.04439303,92039.0,92038.0,0.15641073]
[1763623684303,0.04539303,92039.0,92038.0,0.15641073]
[1763623684911,0.04439303,92039.0,92038.0,0.04764803]
[1763623687521,0.04439303,92039.0,92038.0,0.00219803]
[1763623687909,0.04439303,92039.0,92038.0,0.02522803]
[1763623688211,0.04439303,92039.0,92038.0,0.04764803]
[1763623692922,0.02203303,92039.0,92038.0,0.04764803]
[1763623693116,0.00016303,92039.0,92038.0,0.04764803]
[1763623693524,0.02203303,92039.0,92038.0,0.04764803]
[1763623693822,0.04439303,92039.0,92038.0,0.04764803]
[1763623694917,0.06910872,92039.0,92038.0,0.04764803]
[1763623695421,0.06910872,92039.0,92038.0,0.02522803]
[1763623695819,0.06910872,92039.0,92038.0,0.04764803]
[1763623696912,0.06910872,92039.0,92038.0,0.00219803]
[1763623699132,0.06910872,92039.0,92038.0,0.02522803]
[1763623699924,0.17398872,92039.0,92038.0,0.02522803]
[1763623700227,0.17398872,92039.0,92038.0,0.00219803]
[1763623702219,0.21252738,92039.0,92038.0,0.00219803]
[1763623702724,0.21252738,92039.0,92020.0,3e-08]
[1763623702725,0.1530127,92021.0,92020.0,3e-08]
[1763623702926,0.1530388,91999.0,91998.0,0.38383]
[1763623703123,0.17783803,91999.0,91998.0,0.04764803]
[1763623703316,0.17783803,91999.0,91998.0,0.06096803]
[1763623703913,0.02479923,91999.0,91998.0,0.06096803]
[1763623704119,0.05575215,92020.0,91998.0,0.06096803]
[1763623704120,0.10488,92004.0,92003.0,0.154254]
[1763623704319,0.02476655,92004.0,92003.0,0.15645203]
[1763623704521,0.00016303,92008.0,92007.0,0.1542493]
[1763623704825,0.00016303,92008.0,92007.0,0.15644733]
[1763623705121,0.02203303,92008.0,92007.0,0.04764803]
[1763623705328,0.04439303,92008.0,92007.0,0.04764803]
[1763623706128,0.00016303,92008.0,92007.0,0.04764803]
[1763623706823,0.00116303,92008.0,92007.0,0.04764803]
[1763623707223,0.00016303,92008.0,92007.0,0.04764803]
[1763623707423,0.02203303,92008.0,92007.0,0.04764803]
[1763623708428,0.04439303,92008.0,92007.0,0.04764803]
[1763623710517,0.06912411,92008.0,92007.0,0.00219803]
[1763623712329,0.06912411,92008.0,92007.0,0.04720803]
[1763623712330,0.04439303,92008.0,92007.0,0.04720803]
[1763623713541,0.15217113,92008.0,92007.0,0.04720803]
[1763623715834,0.15317113,92008.0,92007.0,0.04720803]
[1763623716133,0.15417113,92008.0,92007.0,0.04720803]
[1763623716927,0.04238,91999.0,91998.0,0.05754]
[1763623717120,0.1511994,91990.0,91989.0,0.04438303]
[1763623717321,0.1511994,91990.0,91989.0,0.04658106]
[1763623717626,0.1511994,91990.0,91989.0,0.00236106]
[1763623717932,0.6168794,91990.0,91989.0,0.00236106]
[1763623718136,0.6168794,91990.0,91989.0,0.02470106]
[1763623718326,0.5119994,91990.0,91989.0,0.04658106]
[1763623718517,0.6168794,91990.0,91989.0,0.04658106]
[1763623718925,0.2560794,91990.0,91989.0,0.04658106]
[1763623719928,0.1511994,91990.0,91989.0,0.04758106]
[1763623720335,0.1511994,91990.0,91989.0,0.04658106]
[1763623721532,0.1511994,91990.0,91989.0,0.02470106]
[1763623722033,0.1521994,91990.0,91989.0,0.02470106]
[1763623722234,0.1521994,91990.0,91989.0,0.00236106]
[1763623722530,0.1511994,91990.0,91989.0,0.00236106]
[1763623723132,0.1511994,91990.0,91989.0,0.00336106]
[1763623723332,0.1298594,91990.0,91989.0,0.04758106]
[1763623723631,0.1088194,91990.0,91989.0,0.04658106]
[1763623723829,0.1298594,91990.0,91989.0,0.04658106]
[1763623724230,0.1511994,91990.0,91989.0,0.04658106]
[1763623725237,0.1511994,91990.0,91989.0,0.04758106]
[1763623725737,0.1511994,91990.0,91989.0,0.04658106]
[1763623725929,0.1521994,91990.0,91989.0,0.04658106]
[1763623726237,0.1521994,91990.0,91989.0,0.02470106]
[1763623727437,0.1521994,91990.0,91989.0,0.04658106]
[1763623728430,0.1511994,91990.0,91989.0,0.04758106]
[1763623728730,0.1511994,91990.0,91989.0,0.00436106]
[1763623729428,0.1511994,91990.0,91989.0,0.02670106]
[1763623729633,0.1511994,91990.0,91989.0,0.02570106]
[1763623730339,0.17592711,91990.0,91989.0,0.02570106]
[1763623730526,0.1511994,91990.0,91989.0,0.02470106]
[1763623732444,0.17595133,91990.0,91989.0,0.02470106]
[1763623732743,0.17595133,91990.0,91989.0,0.02570106]
[1763623734938,0.17595133,91990.0,91989.0,0.00336106]
[1763623735137,0.17595133,91990.0,91989.0,0.04658106]
[1763623735444,0.17595133,91990.0,91989.0,0.04758106]
[1763623735846,0.17595133,91990.0,91989.0,0.00336106]
[1763623736144,0.17595133,91990.0,91989.0,0.00116303]
[1763623736847,0.17595133,91990.0,91989.0,0.00016303]
[1763623737440,0.17595133,91990.0,91989.0,0.02250303]
[1763623738332,0.17595133,91990.0,91989.0,0.04658106]
[1763623741540,0.06713193,91990.0,91989.0,0.04658106]
[1763623741737,0.02475193,91990.0,91989.0,0.04658106]
[1763623742247,0.1307198,91999.0,91998.0,0.05689]
[1763623742444,0.1770481,91999.0,91998.0,0.05908803]
[1763623743942,0.1770481,91999.0,91998.0,0.04556803]
[1763623744141,0.1522794,91990.0,91989.0,0.04353303]
[1763623744347,0.1522794,91990.0,91989.0,0.04573106]
[1763623744740,0.17706711,91990.0,91989.0,0.04573106]
[1763623746240,0.17706711,91990.0,91989.0,0.04673106]
[1763623747045,0.17706711,91990.0,91989.0,0.04773106]
[1763623749951,0.17706711,91990.0,91989.0,0.04673106]
[1763623750844,0.17706711,91990.0,91989.0,0.04773106]
[1763623751057,0.17706711,91990.0,91989.0,0.04673106]
[1763623751246,0.17706711,91990.0,91989.0,0.04773106]
[1763623751657,0.17706711,91990.0,91989.0,0.04673106]
[1763623751856,0.17706711,91990.0,91989.0,0.04773106]
[1763623752451,0.17706711,91990.0,91989.0,0.04673106]
[1763623752754,0.17706711,91990.0,91989.0,0.04773106]
[1763623753654,0.17706711,91990.0,91989.0,0.00436106]
[1763623754058,0.17706711,91990.0,91989.0,0.04773106]
[1763623754245,0.17706711,91990.0,91989.0,0.04673106]
[1763623754449,0.17706711,91990.0,91989.0,0.04773106]
[1763623755252,0.17706711,91990.0,91989.0,0.02602106]
[1763623755458,0.17706711,91990.0,91989.0,0.04673106]
[1763623755644,0.17706711,91990.0,91989.0,0.02502106]
[1763623756049,0.18698711,91990.0,91989.0,0.00336106]
[1763623757246,0.18698711,91990.0,91989.0,0.00116303]
[1763623757453,0.18698711,91990.0,91989.0,0.00016303]
[1763623758563,0.17706711,91990.0,91989.0,0.02182303]
[1763623758862,0.17706711,91990.0,91989.0,0.04353303]
[1763623759648,0.17706711,91990.0,91989.0,0.04453303]
[1763623759853,0.17706711,91990.0,91989.0,0.04673106]
[1763623760360,0.17706711,91990.0,91989.0,0.00116303]
[1763623760657,0.17706711,91990.0,91989.0,0.00216303]
[1763623761662,0.17706711,91990.0,91989.0,0.00116303]
[1763623762166,0.17706711,91990.0,91989.0,0.00016303]
[1763623762560,0.17706711,91990.0,91989.0,0.02182303]
[1763623762959,0.17706711,91990.0,91989.0,0.00016303]
[1763623763667,0.17706711,91990.0,91989.0,0.04353303]
[1763623764366,0.17706711,91990.0,91989.0,0.02182303]
[1763623764568,0.17706711,91990.0,91989.0,0.04353303]
[1763623765268,0.17706711,91990.0,91989.0,0.04453303]
[1763623767266,0.17706711,91990.0,91989.0,0.04353303]
[1763623768869,0.17706711,91990.0,91989.0,0.04673106]
[1763623769667,0.17706711,91990.0,91989.0,0.04773106]
[1763623770269,0.17706711,91990.0,91989.0,0.04673106]
[1763623770471,0.17706711,91990.0,91989.0,0.04773106]
[1763623774871,0.17706711,91990.0,91989.0,0.04673106]
[1763623775071,0.17706711,91990.0,91989.0,0.04773106]
[1763623775876,0.17706711,91990.0,91989.0,0.00436106]
[1763623776178,0.17706711,91990.0,91989.0,0.00216303]
[1763623777173,0.17706711,91990.0,91989.0,0.00116303]
[1763623777777,0.17706711,91990.0,91989.0,0.00016303]
[1763623778777,0.53786711,91990.0,91989.0,0.00016303]
[1763623782481,0.53786711,91990.0,91989.0,0.02287303]
[1763623782967,0.53786711,91990.0,91989.0,0.04482303]
[1763623783169,0.53786711,91990.0,91989.0,0.04702106]
[1763623784581,0.53786711,91990.0,91989.0,0.04802106]
[1763623785277,0.53786711,91990.0,91989.0,0.04902106]
[1763623791088,0.53786711,91990.0,91989.0,0.04802106]
[1763623791278,0.53786711,91990.0,91989.0,0.04902106]
[1763623791787,0.53786711,91990.0,91989.0,0.04802106]
[1763623793083,0.53786711,91990.0,91989.0,0.04702106]
[1763623793284,0.53786711,91990.0,91989.0,0.04902106]
[1763623795686,0.64274711,91990.0,91989.0,0.04902106]
[1763623798889,0.64274711,91990.0,91989.0,0.04802106]
[1763623799190,0.64274711,91990.0,91989.0,0.04902106]
[1763623800880,0.64274711,91990.0,91989.0,0.04802106]
[1763623801075,0.42904771,91990.0,91989.0,0.04902106]
[1763623801282,0.06799771,91990.0,91989.0,0.04902106]
[1763623802885,0.06799771,91990.0,91989.0,0.00436106]
[1763623804083,0.06799771,91990.0,91989.0,0.00336106]
[1763623804487,0.06799771,91990.0,91989.0,0.02615106]
[1763623804891,0.04321,91990.0,91989.0,0.02615106]
[1763623805092,0.0682794,91990.0,91989.0,0.00336106]
[1763623805492,0.0682794,91990.0,91989.0,0.02615106]
[1763623805693,0.0682794,91990.0,91989.0,0.02515106]
[1763623805892,0.0682794,91990.0,91989.0,0.00236106]
[1763623806991,0.0682794,91990.0,91989.0,0.02515106]
[1763623807195,0.0682794,91990.0,91989.0,0.02505106]
[1763623808086,0.0682794,91990.0,91989.0,0.04708106]
[1763623812191,0.0682794,91990.0,91989.0,0.04808106]
[1763623812496,0.0250694,91990.0,91989.0,0.04908106]
[1763623812892,0.0270694,91990.0,91989.0,0.04708106]
[1763623813500,0.0260694,91990.0,91989.0,0.04708106]
[1763623813792,0.0250694,91990.0,91989.0,0.04708106]
[1763623814694,0.1304429,92004.0,92003.0,0.153624]
[1763623814997,0.15545841,92004.0,92003.0,0.15582203]
[1763623815197,0.02501551,92004.0,92003.0,0.15582203]
[1763623815388,0.04665551,92004.0,92003.0,0.15582203]
[1763623816503,0.02501551,92004.0,92003.0,0.15582203]
[1763623817893,0.04665551,92004.0,92003.0,0.15582203]
[1763623818389,0.02164,92004.0,92003.0,0.15582203]
[1763623818799,0.02180303,92008.0,92007.0,0.1536193]
[1763623819104,0.17677889,92008.0,92007.0,0.15581733]
[1763623819893,0.15279113,92008.0,92007.0,0.15581733]
[1763623820103,0.17777341,92008.0,92007.0,0.15581733]
[1763623820597,0.15658341,92008.0,92007.0,0.15581733]
[1763623821104,0.17777341,92008.0,92007.0,0.15581733]
[1763623821794,0.17877341,92008.0,92007.0,0.15581733]
[1763623821991,0.15379113,92008.0,92007.0,0.15581733]
[1763623822398,0.11096113,92008.0,92007.0,0.15581733]
[1763623822795,0.02380303,92008.0,92007.0,0.15581733]
[1763623823201,0.00216303,92008.0,92007.0,0.15581733]
[1763623823401,0.04499303,92008.0,92007.0,0.15581733]
[1763623825103,0.04499303,92008.0,92007.0,0.04701803]
[1763623828107,0.1087858,92019.0,92007.0,0.04701803]
[1763623828108,0.04451,92026.0,92025.0,0.165558]
[1763623828401,0.1532868,92026.0,92025.0,0.05897803]
[1763623828606,0.04451,92026.0,92025.0,0.05897803]
[1763623828800,0.04451,92026.0,92025.0,0.16775603]
[1763623829304,0.40531,92033.0,92032.0,0.1532097]
[1763623829510,0.40531,92033.0,92032.0,0.15540773]
[1763623829900,0.04451,92033.0,92032.0,0.15540773]
[1763623831008,0.04451,92033.0,92032.0,0.15640773]
[1763623831209,0.04451,92033.0,92032.0,0.15740773]
[1763623831410,0.04451,92033.0,92032.0,0.04863803]
[1763623832202,0.04451,92033.0,92032.0,0.00419803]
[1763623833900,0.04451,92033.0,92032.0,0.00319803]
[1763623834410,0.04451,92033.0,92032.0,0.00419803]
[1763623834801,0.04451,92033.0,92032.0,0.02710803]
[1763623837504,0.04451,92033.0,92032.0,0.04867803]
[1763623843418,0.04451,92033.0,92032.0,0.04767803]
[1763623844313,0.06932115,92033.0,92032.0,0.04767803]
[1763623845113,0.06932115,92033.0,92032.0,0.04867803]
[1763623849427,0.06932115,92033.0,92032.0,0.06179803]
[1763623850118,0.02481115,92033.0,92032.0,0.06179803]
[1763623850318,0.00016303,92035.0,92034.0,0.04448]
[1763623850618,0.00016303,92035.0,92034.0,0.04667803]
[1763623851411,0.00016303,92035.0,92034.0,0.04767803]
[1763623854727,3.03e-06,92035.0,92034.0,0.40847803]
[1763623854927,0.1090257,92046.0,92045.0,0.1663544]
[1763623855224,0.02510801,92046.0,92045.0,0.16855243]
[1763623856920,0.02510801,92046.0,92045.0,0.05979803]
[1763623861427,0.0002716,92046.0,92045.0,0.05979803]
[1763623861621,0.36096303,92055.0,92054.0,0.04448]
[1763623861828,0.38580949,92055.0,92054.0,0.15542173]
[1763623863232,0.02500949,92055.0,92054.0,0.51622173]
[1763623864127,0.00016303,92055.0,92054.0,0.51622173]
[1763623864332,0.00016303,92055.0,92054.0,2.01622173]
[1763623864729,0.03914097,92069.0,92054.0,2.01622173]
[1763623864730,0.02192,92069.0,92068.0,0.1087263]
[1763623864930,0.04674665,92069.0,92068.0,0.15728433]
[1763623865130,0.07003665,92069.0,92068.0,0.15728433]
[1763623865733,0.04674665,92069.0,92068.0,0.15728433]
[1763623865930,0.02482665,92069.0,92068.0,0.15728433]
[1763623866539,0.1087251,92070.0,92069.0,0.04636]
[1763623866739,0.1306406,92074.0,92073.0,0.04636]
[1763623866937,0.17853315,92074.0,92073.0,0.04855803]
[1763623871162,0.06981255,92074.0,92073.0,0.04855803]
[1763623872245,0.04525448,92078.0,92077.0,0.04636]
[1763623872442,0.06982487,92078.0,92077.0,0.04855803]
[1763623872637,0.02461487,92078.0,92077.0,0.15727463]
[1763623873146,0.02196448,92078.0,92077.0,0.15727463]
[1763623873545,0.04525448,92078.0,92077.0,0.15727463]
[1763623874347,0.04525448,92078.0,92077.0,0.04855803]
[1763623876740,4.448e-05,92078.0,92077.0,0.04855803]
[1763623877446,0.02196448,92078.0,92077.0,0.04855803]
[1763623877846,0.04525448,92078.0,92077.0,0.04855803]
[1763623880749,4.448e-05,92078.0,92077.0,0.04855803]
[1763623882851,0.00027149,92086.0,92085.0,0.1681371]
[1763623883050,0.00027149,92086.0,92085.0,0.17033513]
[1763623885457,0.02219149,92086.0,92085.0,0.06162803]
[1763623888060,0.00027149,92086.0,92085.0,0.06162803]
[1763623888565,0.00027149,92086.0,92085.0,0.04855803]
[1763623888566,0.04306149,92086.0,92085.0,0.04855803]
[1763623893271,0.06767243,92086.0,92085.0,0.04855803]
[1763623894279,0.06767243,92086.0,92085.0,0.06229803]
[1763623896177,0.153069,92075.0,92074.0,0.0218]
[1763623896481,0.17758584,92075.0,92074.0,0.04653803]
[1763623897076,0.06886684,92075.0,92074.0,0.04653803]
[1763623897677,0.06886684,92075.0,92074.0,0.04753803]
[1763623897872,0.06886684,92075.0,92074.0,0.15625813]
[1763623899791,0.3608,92078.0,92077.0,0.1530566]
[1763623899973,0.38532197,92078.0,92077.0,0.15525463]
[1763623900374,0.40717475,92078.0,92077.0,0.15525463]
[1763623900975,0.42967475,92078.0,92077.0,0.15525463]
[1763623901282,0.42967475,92078.0,92077.0,0.04653803]
[1763623902379,0.02452475,92078.0,92077.0,0.04653803]
[1763623902677,0.02552475,92078.0,92077.0,0.04653803]
[1763623903078,0.06987475,92078.0,92077.0,0.04653803]
[1763623903286,0.04535,92078.0,92077.0,0.04653803]
[1763623904684,0.06988465,92078.0,92077.0,0.02399803]
[1763623904874,0.06988465,92078.0,92077.0,0.04653803]
[1763623905075,0.06888465,92078.0,92077.0,0.04653803]
[1763623905381,0.06988465,92078.0,92077.0,0.04653803]
[1763623909179,0.06988465,92078.0,92077.0,0.15525473]
[1763623909480,0.04738465,92078.0,92077.0,0.15525473]
[1763623909684,0.02553465,92078.0,92077.0,0.15525473]
[1763623910082,0.001,92078.0,92077.0,0.15525473]
[1763623911390,0.00027149,92086.0,92085.0,0.1667873]
[1763623911689,0.00027149,92086.0,92085.0,0.16898533]
[1763623915686,0.153041,92099.0,92098.0,0.1530319]
[1763623915887,0.1775692,92099.0,92098.0,0.15522993]
[1763623916600,0.0688782,92099.0,92098.0,0.15522993]
[1763623917095,0.0463782,92099.0,92098.0,0.15522993]
[1763623917691,0.02185,92099.0,92098.0,0.15522993]
[1763623918196,0.04435,92103.0,92102.0,0.1530272]
[1763623918389,0.02451563,92103.0,92102.0,0.15522523]
[1763623918591,0.40515,92111.0,92110.0,0.1667577]
[1763623918893,0.42966522,92111.0,92110.0,0.16895573]
[1763623919288,0.42966522,92111.0,92110.0,0.06027803]
[1763623919493,0.42966522,92111.0,92110.0,0.04653803]
[1763623920098,0.42966522,92111.0,92110.0,0.06027803]
[1763623921996,0.42966522,92111.0,92110.0,0.00219803]
[1763623923296,0.40515,92111.0,92110.0,0.00219803]
[1763623924398,0.42963047,92111.0,92110.0,0.00219803]
[1763623924799,0.42963079,92111.0,92110.0,0.00219803]
[1763623925400,0.42963079,92111.0,92100.0,0.04367]
[1763623925401,0.1531983,92101.0,92100.0,0.04367]
[1763623925602,0.5139983,92101.0,92100.0,0.04367]
[1763623925805,0.53847842,92101.0,92100.0,0.04586803]
[1763623927511,0.06899012,92101.0,92100.0,0.05986803]
[1763623928396,0.02448012,92101.0,92100.0,0.05986803]
[1763623929611,0.04767012,92101.0,92100.0,0.05986803]
[1763623930898,0.02319,92101.0,92100.0,0.42066803]
[1763623931705,0.40531,92110.0,92109.0,0.1523489]
[1763623931909,0.42991388,92110.0,92109.0,0.15454693]
[1763623933308,0.42991388,92110.0,92109.0,0.04586803]
[1763623934108,0.42991388,92110.0,92109.0,0.15454693]
[1763623935514,0.1531818,92116.0,92115.0,0.1663418]
[1763623935714,0.17778681,92116.0,92115.0,0.16853983]
[1763623937608,0.06911501,92116.0,92115.0,0.16853983]
[1763623937913,0.02319,92116.0,92115.0,0.16853983]
[1763623938304,0.1531727,92123.0,92122.0,0.1523335]
[1763623938512,0.1531727,92123.0,92122.0,0.15453153]
[1763623938818,0.1531727,92123.0,92122.0,0.04586803]
[1763623939313,0.17778884,92123.0,92122.0,0.04586803]
[1763623939509,0.02319,92123.0,92122.0,0.04586803]
[1763623939710,0.04451,92123.0,92122.0,0.04586803]
[1763623946118,0.06912238,92123.0,92122.0,0.04586803]
[1763623946617,0.06912238,92123.0,92122.0,0.00219803]
[1763623946813,0.06912238,92123.0,92122.0,0.04586803]
[1763623947510,0.06912238,92123.0,92122.0,0.15453163]
[1763623948408,0.06912238,92123.0,92122.0,0.04586803]
[1763623950417,0.06912238,92123.0,92122.0,0.00219803]
[1763623950917,0.1525265,92111.0,92110.0,0.5305396]
[1763623951121,0.1525265,92111.0,92110.0,0.42142803]
[1763623953225,0.1525265,92111.0,92110.0,0.53010573]
[1763623953526,0.1525265,92111.0,92110.0,0.42142803]
[1763623957123,0.04385,92111.0,92110.0,0.42142803]
[1763623966130,0.04385,92111.0,92110.0,0.40742803]
[1763623966427,0.06826039,92111.0,92110.0,0.00219803]
[1763623967033,0.06826039,92111.0,92110.0,0.04659803]
[1763623973437,0.17294039,92111.0,92110.0,0.04659803]
[1763623975944,0.17693689,92111.0,92110.0,0.04659803]
[1763623977644,0.06826039,92111.0,92110.0,0.04759803]
[1763623978345,0.06826039,92111.0,92110.0,0.04859803]
[1763623980249,0.04571039,92111.0,92110.0,0.04859803]
[1763623980439,0.12618,92122.0,92121.0,0.0444]
[1763623980634,0.17375021,92122.0,92121.0,0.04659803]
[1763623983038,0.02441021,92122.0,92121.0,0.04659803]
[1763623983941,0.02213137,92126.0,92125.0,0.16729]
[1763623984141,0.04653379,92126.0,92125.0,0.16948803]
[1763623985344,0.02213137,92126.0,92125.0,0.16948803]
[1763623985748,0.13079017,92126.0,92125.0,0.06082803]
[1763623986158,0.15516213,92126.0,92125.0,0.06082803]
[1763623986458,0.15376017,92126.0,92125.0,0.06082803]
[1763623988159,0.04510137,92126.0,92125.0,0.06082803]
[1763623989859,0.00027137,92126.0,92125.0,0.06082803]
[1763623993154,0.04510137,92126.0,92125.0,0.00219803]
[1763623993559,0.153503,92114.0,92113.0,0.04525]
[1763623993759,0.153503,92114.0,92113.0,0.04744803]
[1763623993964,0.1535113,92107.0,92106.0,0.04541285]
[1763623994154,0.1535113,92107.0,92106.0,0.04761088]
[1763623995362,0.1535113,92107.0,92106.0,0.00236088]
[1763623995667,0.1535113,92107.0,92106.0,0.00016285]
[1763623996456,0.1535278,92093.0,92092.0,0.40605]
[1763623996659,0.1535278,92093.0,92092.0,0.04744803]
[1763623998366,0.04483,92093.0,92092.0,0.04744803]
[1763623998561,0.1535278,92093.0,92092.0,0.04744803]
[1763623999063,0.04483,92093.0,92092.0,0.04744803]
[1763623999870,0.15367985,92102.0,92101.0,0.04525]
[1763624000169,0.04499255,92102.0,92101.0,0.04744803]
[1763624000370,0.00016255,92102.0,92101.0,0.04744803]
[1763624000570,0.00016255,92102.0,92101.0,0.40824803]
[1763624001074,0.04483,92113.0,92112.0,0.01338]
[1763624001267,0.04483,92113.0,92112.0,0.06082803]
[1763624001874,0.04483,92119.0,92118.0,0.05863]
[1763624002171,0.04510137,92126.0,92125.0,0.04525]
[1763624002378,0.04510137,92126.0,92125.0,0.04744803]
[1763624003061,0.15376017,92126.0,92125.0,0.04744803]
[1763624003664,0.04510137,92126.0,92125.0,0.04744803]
[1763624003971,0.02213137,92126.0,92125.0,0.04744803]
[1763624004174,0.3608,92136.0,92135.0,0.04525]
[1763624004175,0.51031,92136.0,92135.0,0.04525]
[1763624004480,0.51031,92136.0,92135.0,0.04744803]
[1763624004862,0.40563,92136.0,92135.0,0.04744803]
[1763624005179,0.40563,92148.0,92147.0,0.04525]
[1763624005369,0.51031,92148.0,92147.0,0.04744803]
[1763624006979,0.3618,92148.0,92147.0,0.04744803]
[1763624007370,0.40663,92148.0,92147.0,0.04744803]
[1763624008273,0.001,92148.0,92147.0,0.04744803]
[1763624008475,0.001,92148.0,92147.0,0.00219803]